bitfinex-derivatives/quotes_SOLF0:USTF0_20240907
["timestamp","ask_amount","ask_price","bid_price","bid_amount"]
[1725677339760,4.01143532,125.12,125.08,9.81]
[1725677339961,3.9976,125.11,125.08,9.81]
[1725677341050,4.06221298,125.13,125.07,150.99249588]
[1725677341359,9.81,125.13,125.07,141.18249588]
[1725677341555,13.80224376,125.13,125.07,141.18249588]
[1725677341962,3.9979,125.1,125.07,141.18249588]
[1725677347260,13.80224376,125.13,125.06,1.3046]
[1725677347565,9.81,125.11,125.06,1.3046]
[1725677347967,3.9982,125.09,125.06,1.3046]
[1725677349263,3.9984,125.08,125.04,3.9996]
[1725677349464,3.9984,125.08,125.04,13.8096]
[1725677350866,3.95720439,125.1,125.02,6.7449]
[1725677351067,11.2169,125.1,125.03,9.81]
[1725677351266,15.15122797,125.1,125.03,9.81]
[1725677351970,3.9989,125.07,125.03,9.81]
[1725677352267,15.15122797,125.1,125.03,9.81]
[1725677353665,15.15122797,125.1,124.92,129.63616062]
[1725677353871,9.81,125.08,125.02,9.81]
[1725677354877,3.9993,125.06,125.02,9.81]
[1725677355677,3.9994,125.05,125.02,9.81]
[1725677358081,11.1548,125.09,125.03,9.81]
[1725677358878,3.999,125.07,125.03,9.81]
[1725677360285,3.999,125.07,125.03,13.81]
[1725677360785,3.9991,125.06,125.03,13.81]
[1725677361083,3.9991,125.06,125.02,13.8101]
[1725677361280,3.9994,125.05,125.0,9.81]
[1725677361784,3.9994,125.05,125.01,4.0004]
[1725677361985,9.81,125.07,124.98,4.0481]
[1725677362185,9.81,125.07,125.0,9.81]
[1725677362686,3.9999,125.04,125.0,13.8108]
[1725677363484,3.9999,125.04,125.0,4.0008]
[1725677363678,3.9999,125.04,125.0,13.8108]
[1725677365382,3.9999,125.04,125.01,4.0006]
[1725677365583,3.9995,125.05,125.01,9.81]
[1725677366487,5.34122797,125.1,124.98,4.0481]
[1725677366488,5.34122797,125.1,125.04,9.81]
[1725677366883,5.34122797,125.1,125.05,3.9993]
[1725677367088,3.9986,125.08,125.04,9.81]
[1725677367390,9.81,125.09,125.04,9.81]
[1725677368078,3.9989,125.07,125.04,9.81]
[1725677369881,3.9991,125.06,125.03,4.0]
[1725677370083,3.9991,125.06,125.02,4.0001]
[1725677371585,3.9994,125.05,125.01,4.0005]
[1725677372193,13.8094,125.05,125.01,4.0005]
[1725677372490,13.8094,125.05,124.98,4.0481]
[1725677372491,3.9999,125.04,125.0,4.0008]
[1725677372693,9.81,125.05,125.0,4.0008]
[1725677374285,4.0,125.03,125.0,4.0008]
[1725677374500,4.0,125.03,124.99,13.8111]
[1725677375090,9.81,125.05,124.99,13.8111]
[1725677375091,4.0004,125.02,124.99,13.8111]
[1725677375396,4.0004,125.02,124.99,4.0011]
[1725677375695,13.90034506,125.03,124.98,2.681]
[1725677378495,4.0008,125.01,124.98,6.6826]
[1725677381201,4.0008,125.01,124.98,5.3022]
[1725677383501,4.0008,125.01,124.97,13.8118]
[1725677392910,4.0008,125.01,124.98,4.0016]
[1725677393813,4.001,125.0,124.97,13.8117]
[1725677394005,13.90034506,125.03,124.95,1.3971]
[1725677394006,9.81,125.02,124.95,1.3971]
[1725677394205,9.81,125.0,124.95,1.3971]
[1725677394406,13.86363669,125.0,124.95,1.3971]
[1725677394605,4.0014,124.99,124.95,5.3994]
[1725677395412,4.0014,124.99,124.96,4.0022]
[1725677400124,4.0011,125.0,124.97,4.0018]
[1725677400910,15.1915833,125.02,124.96,13.8122]
[1725677401318,4.0013,124.99,124.96,13.8122]
[1725677402615,4.0011,125.0,124.96,9.81]
[1725677402822,9.3987,125.08,124.98,9.81]
[1725677403018,9.81,125.05,124.98,9.81]
[1725677403821,1.323,125.07,125.0,9.81]
[1725677404029,10.96366654,125.06,125.0,9.81]
[1725677404221,3.9999,125.04,125.0,13.8107]
[1725677405024,4.0001,125.03,124.95,1.3971]
[1725677405322,4.0001,125.03,124.98,9.81]
[1725677406132,4.0001,125.03,124.99,4.0013]
[1725677407524,4.0001,125.03,125.0,4.0009]
[1725677407729,3.9999,125.04,125.0,4.0009]
[1725677408218,3.9995,125.05,125.01,4.0005]
[1725677416030,29.61366989,125.13,125.04,9.81]
[1725677416233,29.61366989,125.13,125.07,9.81]
[1725677416234,4.00952316,125.11,125.07,9.81]
[1725677416538,3.9973,125.12,125.07,9.81]
[1725677416930,3.9973,125.12,124.99,4.89726298]
[1725677416931,256.61366989,125.2,125.1,9.81]
[1725677417131,3.996,125.16,125.1,9.81]
[1725677417329,3.996,125.16,125.11,9.81]
[1725677417537,1.3923,125.18,125.13,9.81]
[1725677417829,1.15238213,125.17,125.13,13.8068]
[1725677418132,5.3878,125.18,125.13,9.81]
[1725677418532,9.41419748,125.18,125.13,13.8065]
[1725677419832,9.41419748,125.18,125.14,3.9965]
[1725677420028,5.41869748,125.18,125.14,13.8065]
[1725677420240,1.3923,125.18,125.14,13.8065]
[1725677421839,5.3875,125.18,125.14,9.81]
[1725677423636,1.3923,125.18,125.14,13.8064]
[1725677424742,4.05037541,125.19,125.16,9.81]
[1725677424942,8.03508041,125.2,125.17,9.81]
[1725677425241,3.97321398,125.22,125.17,9.81]
[1725677425438,1.15190956,125.21,125.17,13.8053]
[1725677425838,7.96741398,125.22,125.17,13.8053]
[1725677426435,7.96741398,125.22,125.18,9.81]
[1725677427438,3.9943,125.21,125.18,9.81]
[1725677428039,3.98585255,125.22,125.17,9.81]
[1725677428344,1.15187997,125.21,125.1,3.9985]
[1725677428538,3.9951,125.19,125.14,9.81]
[1725677428931,3.9951,125.19,125.14,13.8062]
[1725677429940,3.9953,125.18,125.14,3.9962]
[1725677435045,28.5510314,125.23,125.13,24.54]
[1725677435243,1.15200025,125.22,125.13,24.54]
[1725677435642,3.9955,125.18,125.13,28.5368]
[1725677435839,28.5510314,125.23,125.13,28.5368]
[1725677436041,1.15206206,125.22,125.13,28.5368]
[1725677437241,1.15206206,125.22,125.15,24.54]
[1725677437649,3.9949,125.19,125.15,24.54]
[1725677438141,4.0110314,125.23,125.15,24.54]
[1725677438341,1.15202934,125.22,125.15,24.54]
[1725677438554,1.15202934,125.21,125.15,24.54]
[1725677439048,1.15202934,125.2,125.15,24.54]
[1725677439351,3.9952,125.18,125.15,24.54]
[1725677442247,3.95987437,125.19,125.14,24.54]
[1725677442450,1.388,125.18,125.14,24.54]
[1725677443152,3.9957,125.17,125.14,24.54]
[1725677443655,3.9957,125.17,125.13,3.9966]
[1725677443656,1.388,125.18,125.16,24.54]
[1725677443854,3.95819237,125.23,125.16,24.54]
[1725677444050,2.54001244,125.22,125.16,24.54]
[1725677444253,3.9949,125.19,125.16,24.54]
[1725677444953,7.90033246,125.19,125.16,24.54]
[1725677446858,3.90543246,125.19,125.16,28.5358]
[1725677447058,1.388,125.22,125.16,24.54]
[1725677447257,5.32269551,125.22,125.16,24.54]
[1725677447458,1.388,125.22,125.16,24.54]
[1725677448059,5.2903227,125.22,125.16,24.54]
[1725677448260,3.995,125.19,125.16,24.54]
[1725677448962,3.9948,125.2,125.16,28.5358]
[1725677449157,3.9948,125.2,125.18,24.54]
[1725677450658,3.9944,125.21,125.18,24.54]
[1725677451855,3.9946,125.2,125.18,24.54]
[1725677452054,3.9946,125.2,125.19,9.83]
[1725677452254,5.2903227,125.22,125.17,9.83]
[1725677453164,3.995,125.19,125.17,9.83]
[1725677458167,3.9947,125.2,125.17,9.83]
[1725677459471,3.9944,125.21,125.19,9.83]
[1725677465767,3.9946,125.2,125.17,9.83]
[1725677466166,15.1203227,125.22,125.15,1.3562]
[1725677466369,15.1203227,125.22,125.15,11.1862]
[1725677466370,1.15185808,125.21,125.15,11.1862]
[1725677467373,3.9951,125.19,125.15,15.1823]
[1725677469771,3.9951,125.19,125.17,9.83]
[1725677471269,5.2903227,125.22,125.18,9.83]
[1725677471270,3.9023227,125.22,125.18,9.83]
[1725677471466,5.99508184,125.26,125.2,9.83]
[1725677471467,2.6504,125.26,125.2,9.83]
[1725677471766,1.15171193,125.25,125.22,9.83]
[1725677472368,3.9939,125.23,125.22,9.83]
[1725677472666,9.16639195,125.23,125.22,9.83]
[1725677472974,3.9942,125.22,125.2,9.83]
[1725677473176,5.20326119,125.21,125.2,9.83]
[1725677473368,5.20326119,125.21,125.18,3.995]
[1725677473569,8.04584926,125.21,125.2,9.83]
[1725677473767,9.19754767,125.21,125.2,9.83]
[1725677475879,9.19754723,125.21,125.2,9.83]
[1725677477268,8.04584926,125.21,125.2,9.83]
[1725677478778,3.994,125.22,125.2,9.83]
[1725677478978,2.6504,125.26,125.21,9.83]
[1725677479173,3.9938,125.23,125.21,9.83]
[1725677479369,1.15157675,125.22,125.21,9.83]
[1725677479570,3.9936,125.24,125.21,9.83]
[1725677479775,5.14126802,125.23,125.16,6.70926269]
[1725677480078,3.9936,125.24,125.16,6.70926269]
[1725677480278,3.9936,125.24,125.23,9.83]
[1725677480577,5.1451406,125.24,125.23,9.83]
[1725677481876,5.14514102,125.24,125.23,9.83]
[1725677483173,1.15154102,125.24,125.23,9.83]
[1725677483374,5.99454831,125.29,125.23,9.83]
[1725677483574,1.15112955,125.28,125.25,9.83]
[1725677483772,3.9921,125.28,125.25,9.83]
[1725677484373,3.9924,125.27,125.25,9.83]
[1725677484778,1.2991,125.3,125.25,9.83]
[1725677484966,5.14285345,125.29,125.27,9.83]
[1725677485171,3.9919,125.29,125.27,9.83]
[1725677485975,3.992,125.28,125.27,9.83]
[1725677487273,1.15096607,125.28,125.17,4.87769182]
[1725677487478,10.98096607,125.28,125.18,6.00071827]
[1725677487775,3.9934,125.24,125.22,9.83]
[1725677488174,13.9153441,125.28,125.22,9.83]
[1725677488476,1.15124744,125.27,125.23,9.83]
[1725677488882,3.9932,125.25,125.2,5.3145]
[1725677489078,7.89435401,125.25,125.23,9.83]
[1725677489680,7.89435401,125.25,125.2,5.3145]
[1725677489982,7.89435401,125.25,125.23,9.83]
[1725677492080,3.90115401,125.25,125.2,1.32]
[1725677492378,3.90115401,125.25,125.16,2.6904]
[1725677492379,9.83,125.27,125.17,6.00304566]
[1725677492571,9.83,125.27,125.2,9.83]
[1725677492572,3.9941,125.22,125.2,9.83]
[1725677492777,3.9941,125.22,125.17,1.3009]
[1725677492976,1.3013,125.26,125.2,9.83]
[1725677493175,3.9941,125.22,125.2,9.83]
[1725677493484,1.3013,125.26,125.2,9.83]
[1725677493689,1.15145293,125.25,125.22,9.83]
[1725677494181,3.9935,125.24,125.22,9.83]
[1725677494578,1.3013,125.26,125.22,9.83]
[1725677494579,3.9936,125.23,125.22,9.83]
[1725677501889,3.9939,125.22,125.2,9.83]
[1725677502082,7.95250893,125.22,125.2,9.83]
[1725677502381,3.9939,125.22,125.2,9.83]
[1725677503781,7.92573997,125.22,125.2,9.83]
[1725677505485,3.9942,125.21,125.2,9.83]
[1725677507183,7.93073441,125.22,125.2,9.83]
[1725677507384,3.9941,125.22,125.2,9.83]
[1725677507986,8.00377042,125.22,125.2,9.83]
[1725677509995,3.9941,125.22,125.2,9.83]
[1725677510188,3.9937,125.23,125.21,9.83]
[1725677514791,3.9935,125.24,125.21,9.83]
[1725677515098,3.9935,125.24,125.23,9.83]
[1725677515392,3.9931,125.25,125.23,9.83]
[1725677515597,3.9931,125.25,125.24,9.83]
[1725677516491,15.07059846,125.29,125.24,9.83]
[1725677516492,3.9929,125.26,125.24,9.83]
[1725677521400,39.08059846,125.29,125.17,4.88681653]
[1725677521697,10.98120003,125.28,125.21,9.83]
[1725677521897,1.15120003,125.27,125.21,9.83]
[1725677522394,3.9934,125.24,125.21,9.83]
[1725677523199,3.9932,125.25,125.22,9.83]
[1725677523394,3.9932,125.25,125.24,9.83]
[1725677523703,3.9928,125.26,125.24,9.83]
[1725677524197,3.9922,125.28,125.25,9.83]
[1725677524499,3.94989846,125.29,125.26,9.83]
[1725677524701,1.3575,125.3,125.18,1.3084]
[1725677524702,3.9926,125.27,125.25,9.83]
[1725677527207,3.9926,125.26,125.25,9.83]
[1725677527409,3.93719805,125.28,125.21,3.9941]
[1725677527601,9.83,125.29,125.22,9.83]
[1725677527795,3.9929,125.26,125.22,9.83]
[1725677528109,7.92531025,125.26,125.22,9.83]
[1725677530911,3.993,125.25,125.22,9.83]
[1725677534213,3.9927,125.26,125.24,9.83]
[1725677543925,3.9931,125.25,125.21,3.9941]
[1725677544120,3.91083872,125.27,125.21,9.83]
[1725677544319,9.83,125.28,125.21,9.83]
[1725677544320,11.2608,125.28,125.21,9.83]
[1725677544518,3.9933,125.25,125.21,9.83]
[1725677544723,3.950786,125.24,125.21,9.83]
[1725677545527,7.944186,125.24,125.21,9.83]
[1725677545826,3.9934,125.24,125.21,9.83]
[1725677546326,3.90484663,125.24,125.18,1.3084]
[1725677546518,9.83,125.25,125.18,11.1384]
[1725677546724,1.15159881,125.24,125.18,11.1384]
[1725677546919,3.9944,125.21,125.18,11.1384]
[1725677550131,11.1378,125.24,125.16,5.3625]
[1725677550321,1.15162546,125.23,125.18,9.83]
[1725677552032,3.9944,125.21,125.18,9.83]
[1725677552934,3.9944,125.21,125.19,9.83]
[1725677553632,3.9944,125.21,125.17,3.9955]
[1725677553833,3.9944,125.21,125.19,9.83]
[1725677554534,3.9946,125.2,125.17,9.83]
[1725677556029,3.9946,125.2,125.18,9.83]
[1725677557030,3.9944,125.21,125.18,9.83]
[1725677557631,3.9946,125.2,125.18,9.83]
[1725677561640,25.3178,125.24,125.17,9.83]
[1725677561842,12.29200888,125.23,125.17,9.83]
[1725677562037,1.15170888,125.22,125.17,9.83]
[1725677563141,3.9949,125.19,125.17,9.83]
[1725677568939,1.3103,125.23,125.18,9.83]
[1725677569340,3.9942,125.21,125.2,9.83]
[1725677572543,3.98593961,125.25,125.2,9.83]
[1725677572736,2.6864,125.27,125.22,9.83]
[1725677572737,1.3791,125.27,125.22,9.83]
[1725677573040,1.15135038,125.26,125.22,9.83]
[1725677573239,1.3791,125.27,125.22,9.83]
[1725677573446,3.993,125.25,125.22,9.83]
[1725677574140,3.993,125.25,125.21,3.9942]
[1725677574338,3.9928,125.26,125.24,9.83]
[1725677575150,8.00382879,125.26,125.24,9.83]
[1725677576347,3.9925,125.27,125.24,9.83]
[1725677576742,7.89325447,125.27,125.24,9.83]
[1725677578251,3.9927,125.26,125.24,9.83]
[1725677578443,3.90075447,125.27,125.21,2.7583]
[1725677578643,1.3866,125.28,125.23,9.83]
[1725677579248,5.3897974,125.28,125.23,9.83]
[1725677579545,3.9929,125.26,125.23,9.83]
[1725677579853,5.3897974,125.28,125.23,9.83]
[1725677580054,1.15119996,125.27,125.23,9.83]
[1725677580546,1.15119996,125.27,125.21,11.2442]
[1725677580759,3.9932,125.25,125.21,11.2442]
[1725677580949,5.3897974,125.28,125.24,9.83]
[1725677581251,3.9927,125.26,125.24,9.83]
[1725677581451,5.3897974,125.28,125.25,9.83]
[1725677582146,3.9924,125.27,125.25,9.83]
[1725677583247,3.9926,125.26,125.24,9.83]
[1725677590052,3.9925,125.27,125.24,9.83]
[1725677595760,3.9927,125.26,125.24,9.83]
[1725677597859,39.2297974,125.28,125.13,11.87134226]
[1725677598051,1.15127079,125.27,125.2,9.83]
[1725677598258,3.9938,125.23,125.2,9.83]
[1725677600755,3.9938,125.23,125.18,3.995]
[1725677600957,3.9938,125.23,125.2,9.83]
[1725677601860,3.9938,125.23,125.18,3.995]
[1725677602070,3.9938,125.23,125.21,9.83]
[1725677606469,3.9934,125.24,125.21,9.83]
[1725677608765,3.9934,125.24,125.22,9.83]
[1725677617578,5.3897974,125.28,125.22,9.83]
[1725677617783,1.15135558,125.27,125.23,9.83]
[1725677618182,3.9927,125.26,125.23,9.83]
[1725677623695,5.3897974,125.28,125.25,9.83]
[1725677623887,4.0031974,125.28,125.26,9.83]
[1725677624086,1.3811,125.3,125.26,9.83]
[1725677624280,3.9921,125.28,125.26,9.83]
[1725677624487,8.05194208,125.28,125.26,9.83]
[1725677624686,3.9921,125.28,125.26,9.83]
[1725677625194,7.99761377,125.28,125.26,9.83]
[1725677626298,4.00551377,125.28,125.22,1.372]
[1725677626488,3.9923,125.27,125.22,5.3658]
[1725677626684,3.9923,125.27,125.24,9.83]
[1725677627093,3.9926,125.26,125.24,9.83]
[1725677632596,3.9926,125.26,125.22,5.3658]
[1725677632897,3.9926,125.26,125.24,9.83]
[1725677636800,39.22717219,125.3,125.22,5.3658]
[1725677636994,1.15110464,125.29,125.24,9.83]
[1725677638199,3.9925,125.27,125.24,9.83]
[1725677640801,3.9923,125.28,125.26,9.83]
[1725677641002,4.00607219,125.3,125.27,9.83]
[1725677641197,1.3423,125.31,125.27,9.83]
[1725677641398,3.992,125.29,125.27,9.83]
[1725677641612,7.91898238,125.29,125.27,9.83]
[1725677647209,3.92698238,125.29,125.25,9.83]
[1725677647404,7.33377505,125.31,125.25,9.83]
[1725677647605,1.15097756,125.3,125.25,9.83]
[1725677647800,5.10352468,125.3,125.25,9.83]
[1725677648106,3.9922,125.28,125.25,9.83]
[1725677659721,3.9918,125.29,125.26,9.83]
[1725677660111,8.01644737,125.3,125.28,9.83]
[1725677660311,8.01644737,125.3,125.22,1.372]
[1725677660516,8.01644737,125.3,125.28,9.83]
[1725677660716,104.88022176,125.32,125.28,9.83]
[1725677660913,104.88022176,125.32,125.3,9.83]
[1725677661821,108.87112176,125.32,125.3,9.83]
[1725677664523,3.9909,125.32,125.3,9.83]
[1725677666241,3.9911,125.31,125.3,9.83]
[1725677667345,3.9915,125.3,125.25,3.9928]
[1725677667540,3.92795276,125.3,125.25,3.9928]
[1725677667839,9.83,125.32,125.26,9.83]
[1725677668045,3.9919,125.29,125.26,9.83]
[1725677668243,3.9135749,125.28,125.26,9.83]
[1725677670143,3.9921,125.28,125.26,9.83]
[1725677670343,3.94752263,125.27,125.26,9.83]
[1725677671650,33.8,125.29,125.22,1.372]
[1725677671947,1.15117014,125.28,125.22,1.372]
[1725677672251,1.15117014,125.28,125.23,9.83]
[1725677673343,1.15117014,125.28,125.22,1.372]
[1725677673550,1.15117014,125.28,125.22,11.202]
[1725677674249,1.15117014,125.28,125.22,1.372]
[1725677674250,10.98117014,125.28,125.22,1.372]
[1725677674450,1.15117014,125.27,125.21,9.83]
[1725677674647,9.83,125.27,125.17,4.043]
[1725677674850,10.98123264,125.26,125.18,6.00781749]
[1725677675051,9.83,125.24,125.19,9.83]
[1725677675247,3.9941,125.22,125.19,9.83]
[1725677675753,3.90777153,125.22,125.17,1.4013]
[1725677675969,3.995,125.19,125.15,9.83]
[1725677676247,9.83,125.2,125.14,1.4013]
[1725677676449,3.9961,125.16,125.12,11.2268]
[1725677676754,9.83,125.2,125.14,9.83]
[1725677676953,3.9958,125.17,125.12,1.3968]
[1725677677155,3.9958,125.17,125.14,9.83]
[1725677678451,3.9958,125.17,125.12,1.3968]
[1725677678647,3.9958,125.17,125.13,9.83]
[1725677679056,3.996,125.16,125.13,9.83]
[1725677679756,3.97553313,125.15,125.13,9.83]
[1725677681453,3.97553313,125.15,125.08,2.8095]
[1725677681660,4.03670509,125.15,125.1,9.83]
[1725677681853,3.997,125.13,125.1,9.83]
[1725677682053,7.9965207,125.13,125.1,9.83]
[1725677682248,3.997,125.13,125.1,9.83]
[1725677682452,3.9973,125.12,125.08,1.4013]
[1725677682759,3.9973,125.12,125.08,11.2313]
[1725677683860,3.9973,125.12,125.08,1.4013]
[1725677684059,3.9973,125.12,125.09,9.83]
[1725677684252,9.83,125.12,124.99,7.94014799]
[1725677684458,11.1267,125.12,125.05,9.83]
[1725677684855,1.15305229,125.11,125.05,9.83]
[1725677686062,11.1267,125.12,125.07,9.83]
[1725677686254,1.15304389,125.11,125.07,9.83]
[1725677686455,3.998,125.1,125.04,5.3397]
[1725677686659,11.1267,125.12,125.05,9.83]
[1725677686958,1.15315101,125.11,125.05,9.83]
[1725677687658,1.15315101,125.11,125.07,9.83]
[1725677688253,3.9979,125.1,125.07,9.83]
[1725677690349,3.9979,125.1,125.05,15.1954]
[1725677691360,3.9979,125.1,125.05,16.4876]
[1725677691761,3.9975,125.11,125.07,9.83]
[1725677700164,3.9978,125.1,125.07,9.83]
[1725677701762,3.9981,125.09,125.05,6.6574]
[1725677701963,3.9981,125.09,125.05,16.4874]
[1725677707870,3.9981,125.09,125.06,9.83]
[1725677708072,3.93074958,125.13,125.05,6.6574]
[1725677708073,3.93074958,125.13,125.08,9.83]
[1725677708575,3.9973,125.12,125.08,9.83]
[1725677709173,3.9973,125.12,125.09,9.83]
[1725677709569,7.92774958,125.13,125.09,9.83]
[1725677709775,3.93074958,125.13,125.09,9.83]
[1725677711478,3.9972,125.12,125.09,9.83]
[1725677717476,3.9972,125.12,125.07,13.8286]
[1725677718081,3.9972,125.12,125.08,3.9984]
[1725677718676,3.93074958,125.13,125.07,13.8285]
[1725677719778,3.9974,125.11,125.07,13.8285]
[1725677720786,9.83,125.12,125.05,2.6583]
[1725677720977,9.83,125.12,125.05,12.4883]
[1725677721679,3.998,125.1,125.06,3.999]
[1725677729189,3.998,125.1,125.07,9.83]
[1725677730090,3.998,125.1,125.07,13.8287]
[1725677733194,3.9976,125.11,125.08,3.9983]
[1725677733993,11.1381,125.15,125.08,9.83]
[1725677734189,3.94952103,125.14,125.09,9.83]
[1725677734391,3.94952103,125.14,125.11,9.83]
[1725677734593,7.94622103,125.14,125.11,13.8274]
[1725677736405,3.997,125.13,125.09,3.998]
[1725677736598,3.997,125.13,125.09,13.828]
[1725677736796,3.94952103,125.14,125.09,13.828]
[1725677737090,3.9973,125.12,125.09,9.83]
[1725677737293,7.98242814,125.12,125.09,9.83]
[1725677737701,3.9973,125.12,125.09,9.83]
[1725677738090,3.90916763,125.12,125.09,9.83]
[1725677738295,11.1381,125.15,125.07,13.8286]
[1725677738296,3.9975,125.11,125.07,13.8286]
[1725677739797,3.9975,125.11,125.08,3.9983]
[1725677746609,3.89877304,125.12,125.08,13.77640547]
[1725677746801,1.3081,125.15,125.11,9.83]
[1725677747202,5.28410251,125.15,125.11,9.83]
[1725677747403,1.3081,125.15,125.11,9.83]
[1725677747609,3.9967,125.14,125.11,9.83]
[1725677748398,3.9967,125.14,125.1,13.8275]
[1725677751710,3.997,125.13,125.1,9.83]
[1725677752097,5.38089284,125.15,125.1,9.83]
[1725677752713,3.9967,125.14,125.1,13.8276]
[1725677755017,3.997,125.13,125.09,13.8278]
[1725677756809,3.997,125.13,125.1,10.03403483]
[1725677757010,3.997,125.13,125.1,3.9977]
[1725677765115,3.9972,125.12,125.09,3.998]
[1725677765416,5.38089284,125.15,125.08,9.83]
[1725677765417,9.83,125.14,125.08,9.83]
[1725677765614,3.9974,125.12,125.09,6.03754251]
[1725677765819,3.9974,125.12,125.08,13.8282]
[1725677766017,15.21089284,125.15,125.09,6.03766228]
[1725677766220,3.997,125.13,125.1,9.83]
[1725677768215,3.9971,125.12,125.1,9.83]
[1725677769025,3.9971,125.12,125.08,13.8282]
[1725677769218,3.9971,125.12,125.09,6.03809385]
[1725677769414,3.9971,125.12,125.08,13.8282]
[1725677769720,3.9971,125.12,125.09,6.03810748]
[1725677769920,3.9971,125.12,125.08,13.8282]
[1725677770417,3.9971,125.12,125.09,3.9981]
[1725677770612,3.9971,125.12,125.09,10.03636388]
[1725677770819,3.9971,125.12,125.09,3.9981]
[1725677771525,15.21089284,125.15,125.08,3.9982]
[1725677771723,15.21089284,125.15,125.08,13.8282]
[1725677772022,3.9973,125.12,125.09,6.03960723]
[1725677772323,3.9973,125.12,125.08,13.8282]
[1725677772526,3.9973,125.12,125.09,6.03951491]
[1725677772721,3.9973,125.12,125.08,13.8282]
[1725677772921,3.9973,125.12,125.09,6.03948054]
[1725677773123,3.9973,125.12,125.08,13.8282]
[1725677773325,3.9973,125.12,125.09,6.03952874]
[1725677773525,3.9973,125.12,125.08,13.8282]
[1725677773927,3.9973,125.12,125.09,6.03962355]
[1725677774123,15.21089284,125.15,125.09,6.03962355]
[1725677774328,15.21089284,125.15,125.07,13.8285]
[1725677774329,10.98265197,125.14,125.07,13.8285]
[1725677774522,9.83,125.14,125.08,6.04060758]
[1725677774721,3.9975,125.11,125.07,13.8285]
[1725677774926,3.9975,125.11,125.08,6.03984649]
[1725677775120,3.9976,125.11,125.07,3.9985]
[1725677775321,3.9976,125.11,125.08,6.04043919]
[1725677775519,3.9976,125.11,125.07,3.9985]
[1725677775724,3.9976,125.11,125.08,6.04035135]
[1725677775926,3.9976,125.11,125.07,13.8285]
[1725677776124,3.9976,125.11,125.08,6.04049489]
[1725677776325,3.9976,125.11,125.08,3.9984]
[1725677777432,3.9976,125.11,125.09,6.03852774]
[1725677777731,3.9976,125.11,125.08,3.9984]
[1725677782433,9.83,125.12,125.02,7.96940818]
[1725677782735,1.321,125.13,125.05,9.83]
[1725677782736,9.83,125.11,125.05,9.83]
[1725677782935,9.83,125.11,125.05,13.8292]
[1725677783137,3.9983,125.09,125.05,13.8292]
[1725677783434,1.4171,125.1,125.05,13.8292]
[1725677783635,11.2471,125.1,125.03,1.3353]
[1725677783834,9.83,125.08,125.03,1.3353]
[1725677784134,9.83,125.08,125.02,154.00874704]
[1725677784329,3.9989,125.07,125.02,158.00884704]
[1725677784629,8.05969404,125.07,125.03,6.04583599]
[1725677785432,3.9991,125.06,125.03,6.04583599]
[1725677785934,8.05969404,125.07,125.03,10.04573599]
[1725677786427,3.9986,125.08,125.06,9.83]
[1725677786627,1.4171,125.1,125.06,9.83]
[1725677787631,3.9983,125.09,125.06,9.83]
[1725677788443,3.9983,125.09,125.05,3.9992]
[1725677788444,3.9984,125.08,125.04,15.1889]